bitfinex/quotes_BTCUSD_20250620
["timestamp","ask_amount","ask_price","bid_price","bid_amount"]
[1750442714579,0.49933866,103160.0,103150.0,0.26579914]
[1750442714795,0.49933866,103160.0,103150.0,0.25610509]
[1750442715009,0.49933866,103160.0,103150.0,0.24651142]
[1750442715239,0.48964517,103160.0,103150.0,0.23681699]
[1750442715453,0.48964517,103160.0,103150.0,0.24651151]
[1750442715865,0.48964517,103160.0,103150.0,0.26590027]
[1750442716077,0.52136304,103160.0,103150.0,0.26590027]
[1750442716290,0.48964517,103160.0,103150.0,0.26590027]
[1750442716529,0.48964517,103160.0,103150.0,0.0011]
[1750442716757,5.49899217,103160.0,103150.0,0.0011]
[1750442716966,5.606307,103160.0,103150.0,0.0011]
[1750442717182,6.00823994,103160.0,103150.0,0.0011]
[1750442717392,5.94773584,103160.0,103150.0,0.0011]
[1750442717604,6.00695937,103160.0,103150.0,0.0011]
[1750442717875,6.04015937,103160.0,103150.0,0.0001]
[1750442718946,5.71807937,103160.0,103150.0,0.0001]
[1750442719223,5.62402044,103160.0,103150.0,0.0001]
[1750442719439,5.85758412,103160.0,103150.0,0.0001]
[1750442719650,5.88073096,103160.0,103150.0,0.0001]
[1750442720296,5.88065096,103160.0,103150.0,0.0001]
[1750442720529,5.94613091,103160.0,103150.0,0.0001]
[1750442720951,5.88065096,103160.0,103150.0,0.0001]
[1750442721796,5.97592989,103160.0,103150.0,0.0001]
[1750442722035,6.03892989,103160.0,103150.0,0.0001]
[1750442722652,6.03884989,103160.0,103150.0,0.00915909]
[1750442722863,6.03884989,103160.0,103150.0,0.0001]
[1750442723046,6.12991357,103160.0,103150.0,0.0001]
[1750442723892,6.09901357,103160.0,103150.0,0.0001]
[1750442724097,6.06691357,103160.0,103150.0,0.0001]
[1750442724543,5.97584989,103160.0,103150.0,0.0001]
[1750442726613,5.95270305,103160.0,103150.0,0.0001]
[1750442727863,5.97587413,103160.0,103150.0,0.0001]
[1750442728062,5.95270305,103160.0,103150.0,0.0001]
[1750442728475,5.97587802,103160.0,103150.0,0.0001]
[1750442728680,6.07114787,103160.0,103150.0,0.0001]
[1750442728892,6.10404787,103160.0,103150.0,0.0001]
[1750442729300,6.13301658,103160.0,103150.0,0.0001]
[1750442729502,6.16351658,103160.0,103150.0,0.0001]
[1750442729892,6.1113729,103160.0,103150.0,0.0001]
[1750442730270,0.54358681,103150.0,103140.0,0.0002]
[1750442730455,6.01026325,103150.0,103140.0,0.0002]
[1750442730858,5.7183534,103150.0,103140.0,0.0002]
[1750442731104,5.55171381,103150.0,103140.0,0.0002]
[1750442731278,5.80715381,103150.0,103140.0,0.0325]
[1750442731760,5.55171381,103150.0,103140.0,0.0325]
[1750442731968,5.83031459,103150.0,103140.0,0.0325]
[1750442732188,5.57691459,103150.0,103140.0,0.0002]
[1750442732375,5.83231459,103150.0,103140.0,0.0002]
[1750442732790,6.02402337,103150.0,103140.0,0.0002]
[1750442734749,6.11572434,103150.0,103140.0,0.0002]
[1750442735389,5.86032434,103150.0,103140.0,0.0002]
[1750442735609,5.92863352,103150.0,103140.0,0.0002]
[1750442735837,5.83219459,103150.0,103140.0,0.0002]
[1750442736057,5.57691459,103150.0,103140.0,0.0002]
[1750442736272,5.83215459,103150.0,103140.0,0.0002]
[1750442737541,5.57691459,103150.0,103140.0,0.0002]
[1750442737753,5.83215459,103150.0,103140.0,0.0002]
[1750442737955,5.83331459,103150.0,103140.0,0.0002]
[1750442738593,5.57691459,103150.0,103140.0,0.0002]
[1750442738845,5.57691459,103150.0,103140.0,0.27675163]
[1750442738846,0.02138838,103150.0,103140.0,0.27675163]
[1750442739057,0.27654838,103150.0,103140.0,0.28644681]
[1750442739281,0.27654838,103150.0,103140.0,0.29614171]
[1750442739500,0.28624206,103150.0,103140.0,0.29614171]
[1750442739722,0.35169377,103150.0,103140.0,0.39142064]
[1750442739937,0.002,103150.0,103140.0,0.40596149]
[1750442740592,0.30133283,103160.0,103150.0,0.2862251]
[1750442740802,0.2328,103160.0,103150.0,0.38150403]
[1750442741217,0.01938435,103170.0,103160.0,0.22295349]
[1750442741463,0.09769323,103180.0,103170.0,0.28618188]
[1750442741675,0.058887,103180.0,103170.0,0.38146081]
[1750442742124,0.13350057,103190.0,103180.0,0.27531895]
[1750442742345,0.08791107,103190.0,103180.0,0.29585132]
[1750442742557,0.08791107,103190.0,103180.0,0.28616009]
[1750442742558,0.09760174,103190.0,103180.0,0.28616009]
[1750442742782,0.08791107,103190.0,103180.0,0.28616009]
[1750442743000,0.1072925,103190.0,103180.0,0.28616009]
[1750442743233,0.0484525,103190.0,103180.0,0.28616009]
[1750442743467,0.29142009,103190.0,103180.0,0.27646895]
[1750442743697,0.09760286,103190.0,103180.0,0.28616009]
[1750442743921,0.06853001,103190.0,103180.0,0.28616009]
[1750442744148,0.06853001,103190.0,103180.0,0.38143902]
[1750442744362,0.31105908,103200.0,103190.0,0.06325]
[1750442744550,0.83516826,103200.0,103180.0,0.29026494]
[1750442744810,0.28172848,103190.0,103180.0,0.28511064]
[1750442745025,0.28172914,103190.0,103180.0,0.20352771]
[1750442745236,0.20352762,103180.0,103170.0,0.23354735]
[1750442745453,0.20352762,103180.0,103170.0,0.24323971]
[1750442745691,0.02907727,103170.0,103160.0,0.26691689]
[1750442745905,0.03876916,103170.0,103160.0,0.3913229]
[1750442746160,0.0484618,103170.0,103160.0,0.3913229]
[1750442746381,0.0484618,103170.0,103160.0,0.29604397]
[1750442746593,0.23262396,103170.0,103160.0,0.28635095]
[1750442746815,0.23262396,103170.0,103160.0,0.26384415]
[1750442747287,0.23262396,103170.0,103160.0,0.26269415]
[1750442747534,0.03876916,103170.0,103160.0,0.27373717]
[1750442747735,0.2444218,103170.0,103160.0,0.27473717]
[1750442748155,0.08791661,103170.0,103160.0,0.30553717]
[1750442748404,0.07822425,103170.0,103160.0,0.30553717]
[1750442749016,0.08791661,103170.0,103160.0,0.30553717]
[1750442749394,0.09760916,103170.0,103160.0,0.30553717]
[1750442750532,0.09760906,103170.0,103160.0,0.30553717]
[1750442751018,0.05884,103170.0,103160.0,0.30553717]
[1750442751207,0.07822425,103170.0,103160.0,0.30553717]
[1750442751463,0.05884,103170.0,103160.0,0.30553717]
[1750442751657,0.08791671,103170.0,103160.0,0.30553717]
[1750442752350,0.06853198,103170.0,103160.0,0.30553717]
[1750442752576,0.07822406,103170.0,103160.0,0.30553717]
[1750442753063,0.08791642,103170.0,103160.0,0.30553717]
[1750442753265,0.09760897,103170.0,103160.0,0.30553717]
[1750442753486,0.07822406,103170.0,103160.0,0.30553717]
[1750442753698,0.07822406,103170.0,103160.0,0.30563717]
[1750442754103,0.09760888,103170.0,103160.0,0.30563717]
[1750442754269,0.09760878,103170.0,103160.0,0.30563717]
[1750442754478,0.08791633,103170.0,103160.0,0.30563717]
[1750442754911,0.09760888,103170.0,103160.0,0.30563717]
[1750442755097,0.29146444,103170.0,103160.0,0.27655765]
[1750442755291,0.29146444,103170.0,103160.0,0.24575775]
[1750442755292,0.28177236,103170.0,103160.0,0.24575775]
[1750442755496,0.28177236,103170.0,103160.0,0.26514434]
[1750442755670,0.28177236,103170.0,103160.0,0.25545114]
[1750442756322,0.28177236,103170.0,103160.0,0.26399444]
[1750442756524,0.28177236,103170.0,103160.0,0.27368764]
[1750442757173,0.28177236,103170.0,103160.0,0.27486708]
[1750442757488,0.28177236,103170.0,103160.0,0.27486661]
[1750442757694,0.28177236,103170.0,103160.0,0.26517359]
[1750442757913,0.28177236,103170.0,103160.0,0.25430048]
[1750442758796,0.27208009,103170.0,103160.0,0.24460728]
[1750442759220,0.06853227,103170.0,103160.0,0.2554803]
[1750442759431,0.06853189,103170.0,103160.0,0.2887803]
[1750442759645,0.07822387,103170.0,103160.0,0.2887803]
[1750442759848,0.06853189,103170.0,103160.0,0.2887803]
[1750442760083,0.57262062,103190.0,103180.0,0.01938331]
[1750442760307,0.82614062,103190.0,103180.0,0.21321951]
[1750442760536,0.82614062,103190.0,103180.0,0.23260244]
[1750442760759,0.291,103200.0,103190.0,0.25488867]
[1750442760986,0.32975723,103200.0,103190.0,0.28936867]
[1750442761206,0.24252907,103200.0,103190.0,0.3846476]
[1750442761418,0.11615742,103200.0,103190.0,0.3846476]
[1750442761636,0.00510483,103210.0,103200.0,0.22286706]
[1750442761856,0.00510483,103210.0,103200.0,0.59298684]
[1750442762061,0.00510483,103210.0,103200.0,1.2899857]
[1750442762284,5e-05,103210.0,103200.0,1.29961395]
[1750442762922,5e-05,103210.0,103200.0,1.30161395]
[1750442763129,5e-05,103210.0,103200.0,1.6319857]
[1750442763336,5e-05,103210.0,103200.0,2.32898456]
[1750442763602,5e-05,103210.0,103200.0,2.41414795]
[1750442763819,5e-05,103230.0,103220.0,1.32400274]
[1750442764025,5e-05,103230.0,103220.0,1.61448167]
[1750442764026,9.708e-05,103230.0,103220.0,1.61448167]
[1750442765724,9.708e-05,103230.0,103220.0,1.61848167]
[1750442766820,9.708e-05,103230.0,103220.0,1.63302252]
[1750442767234,9.708e-05,103230.0,103220.0,0.93602366]
[1750442767455,5e-05,103250.0,103240.0,0.29992158]
[1750442767674,9.705e-05,103250.0,103240.0,0.59138051]
[1750442768305,9.705e-05,103250.0,103240.0,1.28837937]
[1750442768517,9.705e-05,103250.0,103240.0,1.62837937]
[1750442768745,9.705e-05,103250.0,103240.0,2.56454162]
[1750442769170,9.705e-05,103250.0,103240.0,1.86754276]
[1750442769957,9.705e-05,103250.0,103240.0,1.86554276]
[1750442770170,9.705e-05,103250.0,103240.0,1.1685439]
[1750442770405,9.705e-05,103250.0,103240.0,1.67454276]
[1750442770574,9.705e-05,103250.0,103240.0,1.86946276]
[1750442771102,5e-05,103260.0,103250.0,0.69318]
[1750442771322,5e-05,103260.0,103250.0,1.48545779]
[1750442772370,5e-05,103260.0,103250.0,1.48745779]
[1750442773064,5e-05,103260.0,103250.0,1.48545779]
[1750442773292,5e-05,103260.0,103250.0,1.48945779]
[1750442773501,5e-05,103260.0,103250.0,1.48785779]
[1750442775063,5e-05,103280.0,103270.0,0.23725685]
[1750442775294,5e-05,103280.0,103270.0,1.28681464]
[1750442775524,5e-05,103280.0,103270.0,1.62681464]
[1750442775732,5e-05,103280.0,103270.0,1.65541156]
[1750442776366,5e-05,103280.0,103270.0,1.65741156]
[1750442776596,5e-05,103280.0,103270.0,1.70741156]
[1750442777022,5e-05,103290.0,103280.0,0.99831416]
[1750442777230,0.0005206,103290.0,103280.0,1.09359309]
[1750442777646,0.0005206,103290.0,103280.0,0.39659423]
[1750442777864,0.01020132,103290.0,103280.0,0.33251423]
[1750442778102,0.10728257,103290.0,103280.0,0.51241338]
[1750442778308,0.36989362,103290.0,103280.0,0.31797356]
[1750442778526,0.36989362,103290.0,103270.0,0.21303237]
[1750442778739,0.02054361,103280.0,103270.0,0.31799381]
[1750442778955,0.23355629,103280.0,103270.0,0.29862898]
[1750442779220,0.03990796,103280.0,103270.0,0.31799493]
[1750442779448,0.09684796,103280.0,103270.0,0.31799493]
[1750442779661,0.09854462,103290.0,103280.0,0.22269445]
[1750442779870,0.03074324,103290.0,103280.0,0.22269445]
[1750442780083,0.0005206,103290.0,103280.0,0.31797338]
[1750442780312,0.06832123,103290.0,103280.0,0.31797338]
[1750442780521,0.0586406,103290.0,103280.0,0.31797338]
[1750442780943,0.06832123,103290.0,103280.0,0.31797338]
[1750442781150,0.25227018,103290.0,103280.0,0.30829162]
[1750442781365,0.098545,103290.0,103280.0,0.32765523]
[1750442781579,0.30185605,103290.0,103280.0,0.22269463]
[1750442782020,0.30185605,103290.0,103280.0,0.22369463]
[1750442782231,0.10822647,103290.0,103280.0,0.24305824]
[1750442782433,0.08886352,103290.0,103280.0,0.24305824]
[1750442782635,0.09854481,103290.0,103280.0,0.24205824]
[1750442782845,0.30185586,103290.0,103280.0,0.23237648]
[1750442783288,0.09854481,103290.0,103280.0,0.24205824]
[1750442783902,0.0586406,103290.0,103280.0,0.33733717]
[1750442784334,0.0005206,103290.0,103280.0,0.33733717]
[1750442784545,0.0005206,103290.0,103280.0,0.33851717]
[1750442784750,0.0005206,103290.0,103280.0,0.35305802]
[1750442785713,0.0005206,103290.0,103280.0,0.35187802]
[1750442785912,0.02104252,103290.0,103280.0,0.33733717]
[1750442786142,0.22435348,103290.0,103280.0,0.30829143]
[1750442786510,0.25655415,103280.0,103270.0,0.20335005]
[1750442786714,0.24687249,103280.0,103270.0,0.20335043]
[1750442786894,0.27787249,103280.0,103270.0,0.21303369]
[1750442787329,0.01084288,103270.0,103260.0,0.40711656]
[1750442787527,0.06832288,103270.0,103260.0,0.50239549]
[1750442787641,0.06832269,103270.0,103260.0,0.50239549]
[1750442787848,0.07800566,103270.0,103260.0,0.30831549]
[1750442788070,0.0780052,103270.0,103260.0,0.30831549]
[1750442788711,0.08768827,103270.0,103260.0,0.30931549]
[1750442789060,0.08768808,103270.0,103260.0,0.30931549]
[1750442789303,0.09737105,103270.0,103260.0,0.30931549]
[1750442789470,0.09737124,103270.0,103260.0,0.30931549]
[1750442789887,0.36442158,103270.0,103260.0,0.31899977]
[1750442790092,0.35473973,103270.0,103260.0,0.21403731]
[1750442790289,0.14170604,103270.0,103260.0,0.23340466]
[1750442790503,0.11070604,103270.0,103260.0,0.23340466]
[1750442790856,0.08768855,103270.0,103260.0,0.23340466]
[1750442791062,0.09737171,103270.0,103260.0,0.23340466]
[1750442791212,0.08768855,103270.0,103260.0,0.23340466]
[1750442791422,0.09737171,103270.0,103260.0,0.23340466]
[1750442791820,0.10705497,103270.0,103260.0,0.23340466]
[1750442792066,0.09737171,103270.0,103260.0,0.23340466]
[1750442792271,0.08768855,103270.0,103260.0,0.23340466]
[1750442793358,0.10705497,103270.0,103260.0,0.23340466]
[1750442793563,0.09737171,103270.0,103260.0,0.23340485]
[1750442794197,0.30072214,103270.0,103260.0,0.23340485]
[1750442794732,0.28135666,103270.0,103260.0,0.21403731]
[1750442794956,0.28135666,103270.0,103260.0,0.21413731]
[1750442795187,0.07800623,103270.0,103260.0,0.23350485]
[1750442795402,0.10116157,103270.0,103260.0,0.23350485]
[1750442795647,0.06832297,103270.0,103260.0,0.23350485]
[1750442796119,0.10705459,103270.0,103260.0,0.23350485]
[1750442796350,0.30072251,103270.0,103260.0,0.23350504]
[1750442796602,0.32388372,103270.0,103260.0,0.23350504]
[1750442796814,0.31420103,103270.0,103260.0,0.23350504]
[1750442797024,0.30451806,103270.0,103260.0,0.23350504]
[1750442797247,0.37104593,103270.0,103260.0,0.22382122]
[1750442797467,5.80272053,103270.0,103260.0,0.0011]
[1750442797698,5.82969678,103270.0,103260.0,0.0011]
[1750442797915,5.99364705,103270.0,103260.0,0.0011]
[1750442798145,5.95502857,103270.0,103260.0,0.0001]
[1750442798350,5.92646735,103270.0,103260.0,0.0001]
[1750442798562,5.92746735,103270.0,103260.0,0.0001]
[1750442799000,5.95134553,103270.0,103260.0,0.0001]
[1750442799223,5.75651845,103270.0,103260.0,0.0001]
[1750442799451,5.93131407,103270.0,103260.0,0.0001]
[1750442799665,5.96250001,103270.0,103260.0,0.0001]
[1750442799883,5.96250005,103270.0,103260.0,0.0001]
[1750442800101,5.93355721,103270.0,103260.0,0.0001]
[1750442800321,5.9413377,103270.0,103260.0,0.0001]
[1750442800755,5.9913377,103270.0,103260.0,0.0001]
[1750442800963,6.0538618,103270.0,103260.0,0.0001]
[1750442801193,6.0038618,103270.0,103260.0,0.0001]
[1750442801396,5.99855294,103270.0,103260.0,0.0001]
[1750442801608,6.04855294,103270.0,103260.0,0.0001]
[1750442802297,6.04854191,103270.0,103260.0,0.0001]
[1750442802517,6.06308276,103270.0,103260.0,0.0001]
[1750442802941,6.06307715,103270.0,103260.0,0.0001]
[1750442803374,6.09169634,103270.0,103260.0,0.0001]
[1750442803828,6.28517176,103270.0,103260.0,0.0001]
[1750442804072,6.28513176,103270.0,103260.0,0.0001]
[1750442804530,6.31399794,103270.0,103260.0,0.0001]
[1750442804801,6.28513176,103270.0,103260.0,0.0001]
[1750442805043,6.31399808,103270.0,103260.0,0.0001]
[1750442805271,6.28513176,103270.0,103260.0,0.0001]
[1750442805507,6.31399157,103270.0,103260.0,0.0001]
[1750442805744,6.16089332,103270.0,103260.0,0.0001]
[1750442806001,5.82693096,103270.0,103260.0,0.0001]
[1750442806245,6.02033196,103270.0,103260.0,0.0001]
[1750442806474,5.84159349,103270.0,103260.0,0.0001]
[1750442806966,5.84059349,103270.0,103260.0,0.0001]
[1750442807188,5.84159349,103270.0,103260.0,0.0001]
[1750442808902,5.84259349,103270.0,103260.0,0.0081]
[1750442809327,5.58272336,103270.0,103260.0,0.0081]
[1750442809524,5.83348336,103270.0,103260.0,0.0081]
[1750442809986,5.83340336,103270.0,103260.0,0.0081]
[1750442810836,0.03121604,103270.0,103260.0,0.23083786]
[1750442811055,0.24045343,103270.0,103260.0,0.21265013]
[1750442811274,0.27860814,103270.0,103260.0,0.20178584]
[1750442811512,0.27860814,103270.0,103260.0,0.21147003]
[1750442811727,0.61355331,103270.0,103260.0,0.21147003]
[1750442812144,0.60387034,103270.0,103260.0,0.21147003]
[1750442812781,0.63378881,103270.0,103260.0,0.21147003]
[1750442813195,0.60387034,103270.0,103260.0,0.22233413]
[1750442813400,0.60387034,103270.0,103260.0,0.23201814]
[1750442814448,0.60387034,103270.0,103260.0,0.21265003]
[1750442814664,0.60387034,103270.0,103260.0,0.00928]
[1750442814908,0.59418708,103270.0,103260.0,0.0081]
[1750442816163,0.59418708,103270.0,103260.0,0.21147013]
[1750442816376,0.59418708,103270.0,103260.0,0.22115432]
[1750442817690,0.59418708,103270.0,103260.0,0.22237432]
[1750442818618,0.59418708,103270.0,103260.0,0.21269013]
[1750442818804,0.53666708,103270.0,103260.0,0.24479013]
[1750442819047,0.79611034,103270.0,103260.0,0.29415823]
[1750442819462,0.79611034,103270.0,103260.0,0.28447432]
[1750442820055,0.79611034,103270.0,103260.0,0.25447432]
[1750442820303,0.78642708,103270.0,103260.0,0.01900429]
[1750442820522,0.40956326,103270.0,103260.0,0.20300584]
[1750442820742,0.003,103270.0,103260.0,0.96115643]
[1750442820964,0.003,103270.0,103260.0,1.08643536]
[1750442821174,0.003,103270.0,103260.0,0.4494365]
[1750442821400,0.01268269,103270.0,103260.0,0.4494365]
[1750442821637,0.003,103270.0,103260.0,1.16097621]
[1750442821823,0.003,103270.0,103260.0,1.35365621]
[1750442822269,0.002,103270.0,103260.0,1.35365621]
[1750442822463,0.002,103270.0,103260.0,0.65665735]
[1750442822708,0.001,103270.0,103260.0,0.64865735]
[1750442822919,0.002,103270.0,103260.0,0.66165735]
[1750442823794,0.14582284,103280.0,103270.0,0.285316]
[1750442824008,0.14582284,103280.0,103270.0,0.38181493]
[1750442824233,0.13614071,103280.0,103270.0,0.38181493]
[1750442824446,0.14582275,103280.0,103270.0,0.38181493]
[1750442824666,0.15550497,103280.0,103270.0,0.38181493]
[1750442825130,0.15550497,103280.0,103270.0,0.2130335]
[1750442825131,0.34047229,103280.0,103270.0,0.2130335]
[1750442825341,0.34047229,103280.0,103270.0,0.23439954]
[1750442825546,0.33079035,103280.0,103270.0,0.23439954]
[1750442826085,0.33079035,103280.0,103270.0,0.24408233]
[1750442826294,0.12745961,103280.0,103270.0,0.24530176]
[1750442826502,0.34047267,103280.0,103270.0,0.24530176]
[1750442826773,0.34047267,103280.0,103270.0,0.22593628]
[1750442827184,5.93836062,103280.0,103270.0,0.002]
[1750442827342,6.03363955,103280.0,103270.0,0.002]
[1750442827586,6.05677604,103280.0,103270.0,0.002]
[1750442827764,6.06581784,103280.0,103270.0,0.002]
[1750442827964,6.1339026,103280.0,103270.0,0.002]
[1750442828369,6.1329026,103280.0,103270.0,0.002]
[1750442828578,6.13290407,103280.0,103270.0,0.002]
[1750442828780,0.20335024,103270.0,103260.0,0.0011]
[1750442828975,5.82740251,103270.0,103260.0,0.0011]
[1750442829384,5.73213266,103270.0,103260.0,0.0011]
[1750442829586,5.98137266,103270.0,103260.0,0.0011]
[1750442829838,5.95823617,103270.0,103260.0,0.0011]
[1750442830058,5.95923617,103270.0,103260.0,0.0011]
[1750442830670,6.01078473,103270.0,103260.0,0.0011]
[1750442830839,6.10605458,103270.0,103260.0,0.0011]
[1750442831252,6.13514958,103270.0,103260.0,0.0051]
[1750442831890,6.03987973,103270.0,103260.0,0.0051]
[1750442832926,6.03979973,103270.0,103260.0,0.0051]
[1750442833971,6.03975973,103270.0,103260.0,0.0051]
[1750442834152,6.0396571,103270.0,103260.0,0.0051]
[1750442834391,6.04871024,103270.0,103260.0,0.0051]
[1750442834609,6.14398009,103270.0,103260.0,0.0051]
[1750442834821,6.57770053,103270.0,103260.0,0.0051]
[1750442835034,6.57770053,103270.0,103220.0,0.0001]
[1750442835035,5.62428266,103230.0,103220.0,0.0001]
[1750442835284,6.20120159,103230.0,103220.0,0.0001]
[1750442835500,6.31963729,103230.0,103220.0,0.0001]
[1750442836358,6.22432744,103230.0,103220.0,0.0001]
[1750442836575,6.22432744,103230.0,103220.0,0.00014705]
[1750442836785,6.22632744,103230.0,103220.0,0.00014705]
[1750442837213,6.23138227,103230.0,103220.0,0.00014705]
[1750442837424,6.23138227,103230.0,103220.0,0.00314705]
[1750442837644,6.32665212,103230.0,103220.0,0.00314705]
[1750442838313,6.10656898,103230.0,103220.0,0.00314705]
[1750442838536,6.13449212,103230.0,103220.0,0.00314705]
[1750442838753,6.32657212,103230.0,103220.0,0.00314705]
[1750442840058,6.30340627,103230.0,103220.0,0.00314705]
[1750442840261,6.32649627,103230.0,103220.0,0.00314705]
[1750442840497,6.30340627,103230.0,103220.0,0.00314705]
[1750442840749,6.20614042,103230.0,103220.0,0.00314705]
[1750442840958,6.17534042,103230.0,103220.0,0.00314705]
[1750442841807,5.92638042,103230.0,103220.0,0.00314705]
[1750442842025,1.07071449,103230.0,103220.0,0.00314705]
[1750442842247,0.82183449,103230.0,103220.0,0.19812794]
[1750442842471,0.82183449,103230.0,103220.0,0.24770355]
[1750442842691,0.24930118,103230.0,103220.0,0.29837859]
[1750442842919,0.24930118,103230.0,103220.0,0.39365752]
[1750442843141,0.25898781,103230.0,103220.0,0.39365752]
[1750442843349,0.26867463,103230.0,103220.0,0.39365752]
[1750442843578,0.25393298,103230.0,103220.0,0.39365752]
[1750442843788,0.23456,103230.0,103220.0,0.39365752]
[1750442844438,0.002,103230.0,103220.0,0.40819837]
[1750442844650,0.002,103230.0,103220.0,1.10519723]
[1750442844858,0.002,103230.0,103220.0,0.40819837]
[1750442845064,0.39688,103240.0,103230.0,0.2876323]
[1750442845282,0.40656532,103240.0,103230.0,0.2876323]
[1750442845508,0.39688,103240.0,103230.0,0.2876323]
[1750442845735,0.05688,103240.0,103230.0,0.38291123]
[1750442845962,0.27781389,103250.0,103240.0,0.25531073]
[1750442846179,0.36905389,103250.0,103240.0,0.25531073]
[1750442846390,0.08593389,103250.0,103240.0,0.28671073]
[1750442846597,0.42593389,103250.0,103240.0,0.28671082]
[1750442846842,0.43561893,103250.0,103240.0,0.27702522]
[1750442847054,0.44530416,103250.0,103240.0,0.24562522]
[1750442847282,0.02905737,103240.0,103230.0,0.22914212]
[1750442847488,0.00968551,103240.0,103230.0,0.2594323]
[1750442847702,0.02905737,103240.0,103230.0,0.2917324]
[1750442847922,0.39636,103250.0,103240.0,0.28571073]
[1750442848180,0.05636,103250.0,103240.0,0.28571073]
[1750442848397,0.05636,103250.0,103240.0,0.38398966]
[1750442848611,0.34505483,103260.0,103250.0,0.28788915]
[1750442849043,0.00505483,103260.0,103250.0,0.38316808]
[1750442849258,0.289,103270.0,103260.0,0.28613757]
[1750442849473,0.30836548,103270.0,103260.0,0.28736757]
[1750442849687,0.64836548,103270.0,103260.0,0.28736757]
[1750442850115,0.63868269,103270.0,103260.0,0.28736757]
[1750442850329,0.6386826,103270.0,103260.0,0.28736757]
[1750442850541,0.65851887,103270.0,103260.0,0.28736757]
[1750442850729,0.6778851,103270.0,103260.0,0.28736757]
[1750442850969,0.65851887,103270.0,103260.0,0.28736757]
[1750442851393,0.65851887,103270.0,103260.0,0.28936757]
[1750442851607,0.67788529,103270.0,103260.0,0.28936757]
[1750442851819,0.80551033,103270.0,103260.0,0.28936776]
[1750442852035,0.86187033,103270.0,103260.0,0.27968394]
[1750442852244,0.84250429,103270.0,103260.0,0.19568584]
[1750442852451,0.84250429,103270.0,103260.0,0.20537013]
[1750442852684,0.84250429,103270.0,103260.0,0.002]
[1750442852905,5.93745788,103270.0,103260.0,0.002]
[1750442853122,6.03273681,103270.0,103260.0,0.002]
[1750442853332,5.93622696,103270.0,103260.0,0.002]
[1750442853765,6.12786696,103270.0,103260.0,0.002]
[1750442853978,6.03258803,103270.0,103260.0,0.002]
[1750442854191,0.55305357,103260.0,103250.0,0.04291523]
[1750442854413,0.55305414,103260.0,103250.0,0.27670496]
[1750442854830,0.55305414,103260.0,103250.0,0.26701983]
[1750442855252,0.56273824,103260.0,103250.0,0.28638981]
[1750442855465,0.34968372,103260.0,103250.0,0.30575942]
[1750442855675,0.35936726,103260.0,103250.0,0.40503835]
[1750442855960,0.34,103260.0,103250.0,0.40603835]
[1750442856180,0.35936716,103260.0,103250.0,0.40603835]
[1750442856389,0.01936716,103260.0,103250.0,0.59759835]
[1750442856597,0.00968344,103260.0,103250.0,0.59759835]
[1750442856809,0.85218707,103270.0,103260.0,0.28403757]
[1750442857027,0.65851915,103270.0,103260.0,0.28526757]
[1750442857237,0.86186949,103270.0,103260.0,0.27558394]
[1750442857451,0.85218689,103270.0,103260.0,0.27558394]
[1750442857688,0.85218689,103270.0,103260.0,0.26590003]
[1750442857896,0.84250401,103270.0,103260.0,0.27558404]
[1750442858105,0.84250401,103270.0,103260.0,0.27758404]
[1750442858328,0.84250401,103270.0,103260.0,0.28726795]
[1750442860047,0.82313768,103270.0,103260.0,0.03343]
[1750442860703,0.82313768,103270.0,103260.0,0.25616823]
[1750442861574,0.82313768,103270.0,103260.0,0.24648432]
[1750442861790,0.82313768,103270.0,103260.0,0.23680013]
[1750442862002,0.82313768,103270.0,103260.0,0.25616833]
[1750442862460,0.82313768,103270.0,103260.0,0.26585215]
[1750442862461,0.84250363,103270.0,103260.0,0.26585215]
[1750442862680,0.64883636,103270.0,103260.0,0.26585215]
[1750442862895,0.6391532,103270.0,103260.0,0.30683578]
[1750442863105,0.65851877,103270.0,103260.0,0.30683578]
[1750442863314,0.65851886,103270.0,103260.0,0.30683578]
[1750442863985,0.64883589,103270.0,103260.0,0.30683578]
[1750442864413,0.65851877,103270.0,103260.0,0.30683578]
[1750442865043,0.0004706,103270.0,103260.0,0.40211471]
[1750442865258,0.0004706,103270.0,103260.0,1.09911357]
[1750442866365,0.0004706,103270.0,103260.0,0.40211471]
[1750442866587,0.01983571,103270.0,103260.0,0.40211471]
[1750442866801,0.0004706,103270.0,103260.0,0.40211471]
[1750442867471,0.01936417,103280.0,103270.0,0.2663286]
[1750442867684,0.22269472,103280.0,103270.0,0.256646]
[1750442868518,0.0387288,103280.0,103270.0,0.256646]
[1750442868747,0.0387288,103280.0,103270.0,0.25664619]
[1750442868748,0.24205917,103280.0,103270.0,0.25664619]
[1750442868959,0.24405917,103280.0,103270.0,0.25664619]
[1750442869393,0.23437732,103280.0,103270.0,0.25664619]
[1750442869822,0.23437732,103280.0,103270.0,0.22271619]
[1750442870059,0.19372336,103240.0,103230.0,0.19374212]
[1750442870280,0.34,103240.0,103230.0,0.21311566]
[1750442870499,0.34968551,103240.0,103230.0,0.2228021]
[1750442870712,0.61653718,103240.0,103230.0,0.2240321]
[1750442870923,0.4157312,103240.0,103230.0,0.2240321]
[1750442871202,0.39636,103240.0,103230.0,1.08050989]
[1750442871625,0.39636,103240.0,103230.0,1.08150989]
[1750442871837,0.34968457,103250.0,103240.0,0.25630998]
[1750442872049,0.40604438,103250.0,103240.0,0.38348891]
[1750442872261,0.39636,103250.0,103240.0,0.38348891]
[1750442872708,0.42541417,103250.0,103240.0,0.38348891]
[1750442872966,0.43509921,103250.0,103240.0,0.38348891]
[1750442873199,0.43509921,103250.0,103240.0,0.37380359]
[1750442873422,0.43509921,103250.0,103240.0,0.34190359]
[1750442874225,0.42541408,103250.0,103240.0,0.34390359]
[1750442874501,0.43509902,103250.0,103240.0,0.34390359]
[1750442874754,0.41572923,103250.0,103240.0,0.34390359]
[1750442875021,0.42541361,103250.0,103240.0,0.34390359]
[1750442875467,0.41572885,103250.0,103240.0,0.34790359]
[1750442875689,0.41572885,103250.0,103240.0,0.38050359]
[1750442875910,0.07572885,103250.0,103240.0,0.38050359]
[1750442876139,0.06604438,103250.0,103240.0,0.38050359]
[1750442876352,0.09509865,103250.0,103240.0,0.38050359]
[1750442876573,0.08541361,103250.0,103240.0,0.38050359]
[1750442876798,0.09509855,103250.0,103240.0,0.38050359]
[1750442877020,0.09509846,103250.0,103240.0,0.38050359]
[1750442877747,0.1047835,103250.0,103240.0,0.38050359]
[1750442877973,0.09509846,103250.0,103240.0,0.38050359]
[1750442878631,0.1047835,103250.0,103240.0,0.38050359]
[1750442878934,0.03414483,103270.0,103260.0,0.20337013]
[1750442879037,0.04378617,103270.0,103260.0,0.22395823]
[1750442879272,0.00968372,103260.0,103250.0,0.45868945]
[1750442879507,0.22273786,103260.0,103250.0,0.20338973]
[1750442879732,0.22273786,103260.0,103250.0,0.21307458]
[1750442879973,0.22273786,103260.0,103250.0,0.20338973]